bitfinex/quotes_BTCUSD_20220204
["timestamp","ask_amount","ask_price","bid_price","bid_amount"]
[1643991425280,0.120893,39796.0,39789.0,0.4273301]
[1643991425281,0.00052756,39791.0,39789.0,0.4273301]
[1643991425479,0.120893,39796.0,39789.0,0.0464]
[1643991425480,0.02142056,39796.0,39789.0,0.0464]
[1643991425679,0.40546073,39795.0,39790.0,0.05]
[1643991425881,0.02142056,39796.0,39791.0,0.0464]
[1643991426081,0.00210984,39799.0,39791.0,0.0464]
[1643991426082,0.01846662,39805.0,39794.0,0.05]
[1643991426280,0.01846662,39805.0,39799.0,0.05]
[1643991426480,0.01846662,39805.0,39800.0,0.0464]
[1643991426913,0.01846662,39805.0,39804.0,1.7]
[1643991427117,0.01846662,39805.0,39804.0,1.7464]
[1643991427318,0.002,39813.0,39805.0,1.65]
[1643991427513,0.002,39813.0,39807.0,1.7]
[1643991427714,0.002,39813.0,39807.0,0.1464]
[1643991427910,0.002,39813.0,39807.0,0.1664]
[1643991427911,0.03,39811.0,39807.0,0.1664]
[1643991428315,0.03,39811.0,39807.0,0.26859096]
[1643991428824,0.032,39808.0,39807.0,0.16859096]
[1643991429013,0.032,39808.0,39807.0,0.0664]
[1643991430115,0.032,39808.0,39807.0,0.15748928]
[1643991430316,0.00065601,39809.0,39808.0,1.65]
[1643991430565,0.00065601,39809.0,39808.0,0.0464]
[1643991430766,0.00065601,39809.0,39808.0,0.1464]
[1643991431367,0.13113081,39814.0,39808.0,0.1464]
[1643991431567,0.00065601,39810.0,39808.0,0.0464]
[1643991431968,0.33352946,39809.0,39805.0,4.99987]
[1643991432170,0.33352946,39809.0,39805.0,4.93177]
[1643991432171,0.12423859,39808.0,39805.0,4.93177]
[1643991432768,0.39591957,39807.0,39805.0,4.93177]
[1643991432968,0.40315094,39807.0,39805.0,3.68367]
[1643991433367,0.10832492,39807.0,39805.0,3.68367]
[1643991433567,0.10832492,39807.0,39805.0,3.57307]
[1643991433771,0.40918207,39806.0,39805.0,2.36787]
[1643991433969,0.4,39805.0,39797.0,0.00091916]
[1643991434222,0.37068238,39800.0,39797.0,0.00091916]
[1643991434415,0.4326178,39802.0,39797.0,0.00091916]
[1643991434614,0.10520716,39801.0,39797.0,0.00091916]
[1643991435016,0.09556382,39798.0,39789.0,0.10434382]
[1643991435320,0.36127828,39800.0,39797.0,0.00091913]
[1643991435514,0.10654193,39799.0,39797.0,0.00091913]
[1643991435916,0.42269031,39799.0,39797.0,0.00091913]
[1643991436116,0.30582186,39798.0,39792.0,0.01989156]
[1643991436420,0.1174541,39794.0,39792.0,0.01989156]
[1643991436618,0.36823843,39793.0,39792.0,0.01989156]
[1643991436818,0.84367674,39793.0,39792.0,0.01989156]
[1643991437016,0.84367674,39793.0,39792.0,0.01489156]
[1643991437216,0.84367674,39793.0,39786.0,0.008]
[1643991437217,1.94367674,39793.0,39786.0,0.008]
[1643991437420,0.11740058,39778.0,39774.0,0.33092684]
[1643991437621,0.00891859,39779.0,39770.0,0.21168002]
[1643991437824,0.53123141,39793.0,39778.0,0.05]
[1643991437825,0.05,39791.0,39778.0,0.05]
[1643991438069,0.05,39791.0,39776.0,0.05]
[1643991438273,0.4972481,39786.0,39775.0,0.32592684]
[1643991438467,0.32498691,39781.0,39772.0,0.21168002]
[1643991438668,0.13711552,39780.0,39771.0,0.22898002]
[1643991438870,0.0155695,39772.0,39766.0,0.0999]
[1643991439071,0.0155695,39769.0,39765.0,3.0]
[1643991439269,0.0155695,39766.0,39765.0,3.0]
[1643991439468,0.36894376,39769.0,39765.0,3.0]
[1643991439670,0.33092684,39779.0,39765.0,3.0]
[1643991439671,0.00832945,39773.0,39765.0,3.0]
[1643991439970,0.00832945,39773.0,39765.0,3.00073949]
[1643991440171,0.12223098,39769.0,39765.0,3.00073949]
[1643991440380,0.12223098,39769.0,39765.0,0.58333949]
[1643991440381,0.17223098,39769.0,39765.0,0.58333949]
[1643991440569,0.43315998,39767.0,39765.0,0.38353949]
[1643991441072,0.3334718,39767.0,39765.0,0.3771]
[1643991441274,0.00851393,39776.0,39766.0,0.38092684]
[1643991441472,0.05,39787.0,39767.0,0.33092684]
[1643991441730,0.02008924,39778.0,39767.0,0.33092684]
[1643991441920,0.16516924,39778.0,39766.0,0.05]
[1643991442117,0.63159838,39775.0,39771.0,0.08531365]
[1643991442317,0.63159838,39775.0,39766.0,0.05]
[1643991442318,0.4924475,39775.0,39766.0,0.05]
[1643991442520,0.27857478,39772.0,39770.0,0.00088631]
[1643991442720,0.42365478,39772.0,39770.0,0.00088631]
[1643991442924,0.43003951,39772.0,39770.0,0.00088631]
[1643991443320,0.14689194,39771.0,39770.0,0.00088631]
[1643991443519,0.14689194,39771.0,39765.0,0.3771]
[1643991443718,0.55944319,39768.0,39765.0,0.3771]
[1643991444117,0.15302726,39768.0,39765.0,0.3771]
[1643991444319,0.14508,39768.0,39765.0,0.4271]
[1643991444520,0.14508,39768.0,39765.0,0.3771]
[1643991444820,0.14508,39768.0,39766.0,0.05]
[1643991445465,0.14508,39768.0,39765.0,0.37797781]
[1643991445466,0.14068,39768.0,39765.0,0.37797781]
[1643991445662,0.14068,39768.0,39767.0,0.05]
[1643991446068,0.05,39770.0,39765.0,0.47797781]
[1643991446263,0.05,39770.0,39766.0,0.08038254]
[1643991446464,0.00568442,39779.0,39778.0,1.56558354]
[1643991446666,0.00568442,39779.0,39778.0,1.76198354]
[1643991446667,0.25187442,39779.0,39778.0,1.76198354]
[1643991446872,0.09196439,39797.0,39779.0,1.65855558]
[1643991447065,0.25187,39796.0,39794.0,0.05]
[1643991447464,0.25187,39796.0,39795.0,0.13621921]
[1643991447661,0.0001,39800.0,39795.0,0.13621921]
[1643991447662,0.0001,39800.0,39796.0,1.0]
[1643991447864,0.0001,39800.0,39797.0,0.0464]
[1643991448067,0.0001,39800.0,39799.0,1.3]
[1643991448262,0.0001,39800.0,39799.0,0.0964]
[1643991448563,0.0001,39800.0,39799.0,0.1464]
[1643991448964,0.0001,39800.0,39799.0,0.0464]
[1643991449223,0.10287948,39800.0,39799.0,0.0464]
[1643991449512,0.0001,39800.0,39799.0,0.0454]
[1643991449713,0.0001,39800.0,39799.0,0.0954]
[1643991449912,0.0001,39800.0,39799.0,0.0944]
[1643991450213,0.0001,39800.0,39799.0,0.0444]
[1643991450414,0.15552223,39800.0,39799.0,0.0444]
[1643991450616,0.0001,39800.0,39799.0,0.0444]
[1643991451417,0.07913123,39800.0,39799.0,0.0444]
[1643991451614,0.052,39806.0,39799.0,0.0444]
[1643991451819,0.001,39832.0,39806.0,1.65]
[1643991452019,0.001,39832.0,39826.0,1.7]
[1643991452020,0.63647511,39827.0,39826.0,1.7]
[1643991452217,0.002,39835.0,39828.0,1.65]
[1643991452421,0.48803202,39836.0,39832.0,0.6295]
[1643991452614,0.09431402,39837.0,39835.0,0.15188209]
[1643991452814,0.09431402,39837.0,39836.0,0.0464]
[1643991453065,0.09431402,39837.0,39836.0,0.6249]
[1643991453266,0.09431402,39837.0,39836.0,0.6199]
[1643991453461,0.09431402,39837.0,39836.0,0.1904]
[1643991453661,0.45704628,39837.0,39836.0,0.1404]
[1643991453864,0.001,39840.0,39837.0,1.838213]
[1643991454062,0.002,39843.0,39838.0,0.0964]
[1643991454264,0.002,39843.0,39838.0,0.0464]
[1643991454866,0.29318893,39839.0,39838.0,0.0464]
[1643991455869,0.37292664,39839.0,39838.0,0.0464]
[1643991456065,0.95,39838.0,39833.0,0.02196007]
[1643991456262,0.43377237,39836.0,39833.0,0.02196007]
[1643991456464,0.13550053,39834.0,39826.0,0.7199]
[1643991456720,0.14073677,39827.0,39826.0,0.7199]
[1643991456910,0.53836688,39827.0,39826.0,0.7199]
[1643991457312,0.53836688,39827.0,39818.0,0.05246227]
[1643991457313,0.94038626,39827.0,39818.0,0.05246227]
[1643991457513,0.09897513,39826.0,39818.0,0.05246227]
[1643991457711,0.94038626,39827.0,39818.0,0.05246227]
[1643991457712,0.05,39823.0,39818.0,0.05246227]
[1643991457914,0.09422448,39822.0,39818.0,0.05246227]
[1643991458111,0.05,39823.0,39806.0,0.5]
[1643991458112,0.10503457,39820.0,39806.0,0.5]
[1643991458312,0.36421104,39821.0,39809.0,0.00093829]
[1643991458316,0.42803215,39819.0,39809.0,0.00093829]
[1643991458519,0.0925524,39818.0,39809.0,0.00093829]
[1643991458713,0.05,39815.0,39809.0,0.00093829]
[1643991458914,0.14275467,39815.0,39809.0,0.00093829]
[1643991459112,0.05,39815.0,39813.0,0.10135663]
[1643991459513,0.33340562,39821.0,39814.0,0.05]
[1643991459712,0.33340562,39821.0,39816.0,0.05]
[1643991459914,0.33340562,39821.0,39814.0,1.1999]
[1643991460118,0.10006021,39826.0,39820.0,0.1]
[1643991460319,0.002,39847.0,39845.0,0.31167772]
[1643991460575,0.0031,39850.0,39846.0,1.65]
[1643991460774,0.0031,39850.0,39845.0,2.05942534]
[1643991460775,0.33795962,39850.0,39847.0,0.7663]
[1643991460972,0.33795962,39850.0,39848.0,0.0464]
[1643991461180,1.0976822,39849.0,39848.0,0.0464]
[1643991461372,1.23941828,39849.0,39848.0,0.0464]
[1643991461572,1.33769579,39849.0,39848.0,0.0464]
[1643991461776,1.0,39848.0,39839.0,0.1]
[1643991461973,1.991869,39846.0,39833.0,0.52196007]
[1643991462177,0.10514976,39845.0,39834.0,0.0464]
[1643991462371,0.10514976,39845.0,39829.0,0.0464]
[1643991462372,0.09942534,39843.0,39829.0,0.0464]
[1643991462577,0.09942534,39843.0,39825.0,0.5]
[1643991462578,0.1367186,39827.0,39825.0,0.5]
[1643991462776,0.14863405,39821.0,39817.0,0.50011257]
[1643991462976,0.28221094,39825.0,39814.0,0.81302534]
[1643991463176,0.09031175,39819.0,39814.0,0.8882675]
[1643991463373,0.27934668,39818.0,39814.0,0.81302534]
[1643991463574,0.27934668,39818.0,39816.0,0.112789]
[1643991463778,0.27934668,39818.0,39813.0,0.09645]
[1643991463975,0.14595206,39817.0,39813.0,0.09645]
[1643991464415,0.20679827,39816.0,39814.0,0.00091656]
[1643991464613,0.20481872,39816.0,39814.0,0.00091656]
[1643991464812,0.10234116,39816.0,39814.0,0.00091656]
[1643991465417,0.10234116,39816.0,39813.0,0.19288]
[1643991465714,0.10234116,39816.0,39813.0,0.19379656]
[1643991465914,0.11619631,39814.0,39813.0,0.19379656]
[1643991466113,0.41245217,39819.0,39813.0,0.19379656]
[1643991466114,0.20083586,39815.0,39813.0,0.09736656]
[1643991466317,0.08685781,39815.0,39813.0,0.00091656]
[1643991466513,0.27045738,39814.0,39806.0,0.062801]
[1643991466714,0.27045738,39814.0,39812.0,0.00091658]
[1643991467313,0.50149417,39813.0,39812.0,0.00091658]
[1643991467714,0.50149417,39813.0,39807.0,0.29838691]
[1643991467958,0.50149417,39813.0,39811.0,0.00088238]
[1643991468359,0.3568774,39813.0,39811.0,0.00088238]
[1643991468965,0.3568774,39813.0,39806.0,0.09647]
[1643991469159,0.3568774,39813.0,39810.0,0.00087039]
[1643991469362,0.1442171,39817.0,39810.0,0.00087039]
[1643991469560,0.00052538,39825.0,39810.0,0.00087039]
[1643991469561,0.05,39822.0,39810.0,0.00087039]
[1643991469961,0.11099065,39820.0,39810.0,0.00087039]
[1643991470164,0.1048818,39819.0,39803.0,0.125583]
[1643991470365,0.1048818,39819.0,39799.0,0.35272905]
[1643991470366,1.18014331,39800.0,39799.0,0.0002]
[1643991470565,0.11544434,39800.0,39799.0,0.0002]
[1643991470966,0.47358217,39800.0,39799.0,0.0002]
[1643991472013,0.62038835,39800.0,39799.0,0.0002]
[1643991472815,0.72055484,39800.0,39799.0,0.0002]
[1643991473313,0.62038835,39800.0,39799.0,0.0002]
[1643991475013,0.47358217,39800.0,39799.0,0.0002]
[1643991475862,0.47358217,39800.0,39799.0,0.33785]
[1643991476264,0.47358217,39800.0,39799.0,0.58911]
[1643991476665,0.05,39803.0,39799.0,0.58911]
[1643991477366,0.04972664,39803.0,39799.0,0.58911]
[1643991477566,0.45052737,39802.0,39799.0,0.58911]
[1643991477766,0.52893131,39802.0,39799.0,0.58995942]
[1643991477969,0.341869,39801.0,39799.0,0.58995942]
[1643991478167,0.52893131,39802.0,39799.0,0.58995942]
[1643991478366,0.07840394,39802.0,39799.0,0.58995942]
[1643991478766,0.07840394,39802.0,39799.0,0.58911]
[1643991478968,0.07840394,39802.0,39799.0,0.58995949]
[1643991479416,0.45346972,39802.0,39799.0,0.58995949]
[1643991480016,0.45346972,39802.0,39799.0,0.58911]
[1643991480219,1.3156,39821.0,39800.0,0.30375387]
[1643991480422,0.02143857,39814.0,39803.0,0.09647]
[1643991480623,0.02143857,39814.0,39805.0,0.05]
[1643991480821,0.02143857,39814.0,39806.0,0.09647]
[1643991481020,0.02143857,39814.0,39806.0,0.19292]
[1643991481222,0.27398538,39809.0,39806.0,0.3341451]
[1643991481420,0.27398538,39809.0,39806.0,0.19361019]
[1643991481421,0.64146047,39809.0,39806.0,0.19361019]
[1643991481620,0.27398538,39809.0,39806.0,0.24361019]
[1643991482022,0.27398538,39809.0,39806.0,0.19361019]
[1643991482325,0.05,39815.0,39806.0,0.19292]
[1643991482523,0.05,39815.0,39806.0,0.19361019]
[1643991482723,0.08528824,39808.0,39807.0,0.29722954]
[1643991482967,0.29960216,39812.0,39806.0,0.09716019]
[1643991483168,0.29960216,39812.0,39806.0,0.09216019]
[1643991483466,0.05,39815.0,39806.0,0.17628019]
[1643991483667,0.12701819,39814.0,39807.0,0.30167443]
[1643991483865,0.12701819,39814.0,39808.0,0.05]
[1643991484066,0.09073179,39811.0,39808.0,0.05]
[1643991484264,0.54054468,39811.0,39808.0,0.05]
[1643991484466,0.49592768,39811.0,39808.0,0.05]
[1643991485066,0.12610403,39810.0,39808.0,0.00088337]
[1643991486068,0.12610403,39810.0,39805.0,0.062801]
[1643991486267,0.37666956,39811.0,39807.0,0.00088108]
[1643991486468,0.09978461,39808.0,39807.0,0.00088108]
[1643991487115,0.09978461,39808.0,39805.0,0.062797]
[1643991487518,0.09978461,39808.0,39806.0,0.0008811]
[1643991487519,0.2770119,39807.0,39806.0,0.0008811]
[1643991488115,0.27512407,39807.0,39806.0,0.0008811]
[1643991488519,0.00086018,39809.0,39806.0,0.34890292]
[1643991488723,1.8e-07,39809.0,39808.0,0.175564]
[1643991488921,0.01980422,39819.0,39808.0,0.217764]
[1643991489121,0.01980422,39819.0,39818.0,1.712774]
[1643991489317,0.01980422,39819.0,39818.0,0.104974]
[1643991489517,0.01980422,39819.0,39818.0,0.204974]
[1643991489718,0.01980422,39819.0,39818.0,0.104974]
[1643991489919,0.1218796,39819.0,39818.0,0.104974]
[1643991490318,0.378561,39826.0,39819.0,1.55]
[1643991490319,0.31880968,39826.0,39819.0,1.55]
[1643991490576,0.25109473,39858.0,39820.0,0.0922]
[1643991490577,0.08484224,39824.0,39820.0,0.0922]
[1643991490776,0.08484224,39824.0,39821.0,0.0422]
[1643991490978,0.08484224,39824.0,39818.0,0.06980422]
[1643991491376,0.14877735,39819.0,39818.0,0.06980422]
[1643991491580,0.49551413,39819.0,39818.0,0.01980422]
[1643991491776,0.86327801,39819.0,39818.0,0.01980422]
[1643991491976,0.86327801,39819.0,39809.0,0.43903226]
[1643991491977,0.91327801,39819.0,39809.0,0.43903226]
[1643991492181,0.001,39828.0,39809.0,0.267778]
[1643991492399,0.01980422,39819.0,39815.0,0.21235096]
[1643991492578,0.00019399,39827.0,39818.0,0.21235096]
[1643991492783,0.00019399,39827.0,39820.0,0.21235096]
[1643991492979,0.00019399,39827.0,39822.0,0.21235096]
[1643991493182,0.09484953,39828.0,39823.0,0.27408552]
[1643991493379,0.09484953,39828.0,39823.0,0.33683852]
[1643991493580,0.00064352,39827.0,39823.0,0.52509552]
[1643991493781,0.00064352,39827.0,39823.0,0.330457]
[1643991494241,0.05,39824.0,39823.0,0.830457]
[1643991494429,0.05,39824.0,39823.0,0.6422]
[1643991494935,0.05,39824.0,39823.0,0.5422]
[1643991494936,0.31952144,39824.0,39823.0,0.5422]
[1643991495131,0.31952144,39824.0,39823.0,0.0422]
[1643991495534,0.43856342,39824.0,39823.0,0.0422]
[1643991496634,0.75677587,39824.0,39822.0,0.00094092]
[1643991496937,0.75677587,39824.0,39820.0,0.0004]
[1643991496938,0.43856342,39824.0,39820.0,0.0004]
[1643991497233,0.38856342,39824.0,39821.0,0.00094093]
[1643991497433,0.05,39822.0,39821.0,0.00094093]
[1643991497634,0.13129349,39822.0,39821.0,0.00094093]
[1643991497837,0.13129349,39822.0,39821.0,0.06371793]
[1643991498066,0.13129349,39822.0,39821.0,0.062777]
[1643991498268,0.13129349,39822.0,39820.0,0.00134096]
[1643991498469,0.23068283,39822.0,39820.0,0.00134096]
[1643991498670,0.14365687,39809.0,39808.0,4.02168032]
[1643991498872,0.19365687,39809.0,39808.0,4.02168032]
[1643991499471,0.61438173,39809.0,39808.0,4.02168032]
[1643991499870,1.91438173,39809.0,39802.0,0.00502488]
[1643991500076,0.05,39803.0,39802.0,0.00502488]
[1643991500275,0.49490636,39803.0,39802.0,0.00502488]
[1643991500474,0.36924291,39803.0,39802.0,0.00502488]
[1643991501070,0.35959696,39809.0,39802.0,0.00502488]
[1643991501071,0.02168032,39809.0,39802.0,0.00502488]
[1643991501270,0.02168032,39809.0,39802.0,0.21737584]
[1643991501726,0.05,39806.0,39802.0,0.06782988]
[1643991501919,0.05,39808.0,39802.0,0.06782988]
[1643991502119,0.05,39809.0,39804.0,0.00087842]
[1643991502520,0.05,39814.0,39804.0,0.21322938]
[1643991502722,0.35897902,39815.0,39804.0,0.21322938]
[1643991502723,0.35897902,39815.0,39806.0,0.21235096]
[1643991502920,0.05,39811.0,39805.0,0.21235096]
[1643991503128,0.05,39806.0,39804.0,0.21235096]
[1643991503322,0.05,39806.0,39805.0,0.0628]
[1643991504124,0.05,39810.0,39805.0,0.0628]
[1643991504325,0.05,39809.0,39805.0,0.0628]
[1643991504523,0.05,39807.0,39805.0,0.0628]
[1643991504724,0.05,39807.0,39804.0,0.00088166]
[1643991505129,0.05,39807.0,39805.0,0.062803]
[1643991505326,0.05,39807.0,39804.0,0.00088166]
[1643991505327,0.4885991,39806.0,39804.0,0.00088166]
[1643991505566,0.05,39805.0,39802.0,0.00502488]
[1643991505771,0.33640692,39806.0,39804.0,0.00088165]
[1643991505968,0.05,39805.0,39804.0,0.00088165]
[1643991506465,0.35059921,39813.0,39804.0,0.00088165]
[1643991506466,0.42248462,39812.0,39804.0,0.00088165]
[1643991506667,0.12568031,39807.0,39802.0,0.28018984]
[1643991506965,0.42248462,39812.0,39806.0,0.00088161]
[1643991507167,0.35738605,39810.0,39806.0,0.00088161]
[1643991507366,0.35738605,39810.0,39799.0,0.10398183]
[1643991507665,0.46628177,39806.0,39802.0,0.21264219]
[1643991507864,0.35738605,39810.0,39802.0,0.21264219]
[1643991508465,0.09214759,39807.0,39802.0,0.27545619]
[1643991508666,0.27097317,39804.0,39802.0,0.27545619]
[1643991508971,0.27097317,39804.0,39802.0,0.062814]
[1643991510213,0.0025698,39805.0,39802.0,0.062814]
[1643991510415,0.0025698,39805.0,39804.0,0.05]
[1643991510819,0.0025698,39805.0,39804.0,0.0922]
[1643991511018,0.001,39832.0,39807.0,0.062782]
[1643991511220,0.001,39832.0,39827.0,1.7]
[1643991511415,0.001,39832.0,39828.0,1.65]
[1643991511615,0.001,39832.0,39831.0,0.05]
[1643991511818,0.001,39832.0,39831.0,0.0922]
[1643991512315,0.11871342,39832.0,39831.0,0.0922]
[1643991512519,0.42021726,39826.0,39819.0,2.83980933]
[1643991512716,0.29051434,39830.0,39824.0,0.5]
[1643991512991,0.33923287,39824.0,39821.0,0.0422]
[1643991513192,0.002564,39830.0,39823.0,0.08640705]
[1643991513396,0.002564,39831.0,39826.0,0.062771]
[1643991513594,0.002564,39831.0,39827.0,1.6922]
[1643991513790,0.002564,39831.0,39829.0,0.06275098]
[1643991513987,0.002564,39831.0,39830.0,0.0422]
[1643991514793,0.052564,39831.0,39830.0,0.0422]
[1643991515190,0.19286201,39831.0,39830.0,0.0422]
[1643991515393,0.002564,39831.0,39830.0,0.0422]
[1643991515693,0.052564,39831.0,39830.0,0.0422]
[1643991516091,0.05,39831.0,39830.0,0.0422]
[1643991516291,0.55553182,39831.0,39830.0,0.0422]
[1643991516719,0.65043671,39831.0,39830.0,0.0422]
[1643991517114,0.65043671,39831.0,39826.0,0.047771]
[1643991517517,0.44541811,39831.0,39827.0,0.188261]
[1643991517915,0.002564,39832.0,39828.0,0.0422]
[1643991518116,0.00064131,39830.0,39828.0,0.35078859]
[1643991518317,0.002564,39834.0,39831.0,0.062739]
[1643991518523,0.00356484,39836.0,39833.0,0.062735]
[1643991518524,0.001282,39835.0,39833.0,0.062735]
[1643991518715,0.001282,39835.0,39834.0,0.19549259]
[1643991518917,0.16921428,39839.0,39834.0,0.19549259]
[1643991519118,0.51416213,39839.0,39835.0,0.0422]
[1643991519316,0.51416213,39839.0,39836.0,0.0422]
[1643991519317,0.16921428,39839.0,39836.0,0.0422]
[1643991519517,0.57250776,39838.0,39837.0,0.0422]
[1643991519717,0.16921428,39839.0,39837.0,0.10495]
[1643991520117,0.02151428,39839.0,39837.0,0.10495]
[1643991520316,0.07151428,39839.0,39837.0,0.10495]
[1643991520563,0.09714937,39849.0,39837.0,0.10495]
[1643991520765,0.14453824,39845.0,39841.0,0.062737]
[1643991520966,0.14453824,39845.0,39840.0,0.250949]
[1643991520967,0.02134877,39848.0,39844.0,0.05]
[1643991521272,0.02134877,39848.0,39847.0,0.05]
[1643991521273,0.02394037,39848.0,39847.0,0.05]
[1643991521464,0.02394037,39848.0,39845.0,0.0422]
[1643991521863,0.13593644,39847.0,39845.0,0.0422]
[1643991522077,0.09550897,39846.0,39845.0,0.0422]
[1643991522464,0.09550897,39846.0,39845.0,0.062737]
[1643991523066,0.2823686,39827.0,39824.0,2.56315142]
[1643991523270,1.65,39844.0,39824.0,2.06616309]
[1643991523271,0.11547203,39825.0,39824.0,2.06616309]
[1643991523470,0.05,39829.0,39824.0,2.06616309]
[1643991523771,0.9386,39842.0,39826.0,0.05]
[1643991523772,0.05,39841.0,39826.0,0.05]
[1643991524068,0.02151428,39839.0,39826.0,0.44024259]
[1643991524317,0.32783002,39839.0,39826.0,0.44024259]
[1643991524519,0.14229518,39837.0,39826.0,0.44024259]
[1643991524816,0.02151428,39839.0,39828.0,0.10239169]
[1643991525216,0.02410588,39839.0,39832.0,0.33258162]
[1643991525816,0.02410588,39839.0,39830.0,0.05]
[1643991526123,0.02609,39863.0,39824.0,2.20414991]
[1643991526324,0.27932435,39827.0,39824.0,1.99136233]
[1643991526524,0.10013069,39835.0,39827.0,0.7]
[1643991526720,0.0025916,39839.0,39827.0,0.7]
[1643991526918,0.0025916,39839.0,39824.0,1.99136233]
[1643991527117,0.12899278,39836.0,39824.0,1.99136233]
[1643991527317,0.34571142,39835.0,39824.0,1.99136233]
[1643991527718,0.05,39835.0,39828.0,0.00094396]
[1643991527972,0.05,39832.0,39831.0,0.42255388]
[1643991528174,0.0025916,39832.0,39831.0,0.42255388]
[1643991528573,0.0025916,39832.0,39828.0,0.00094396]
[1643991528774,0.3411116,39832.0,39824.0,1.99136233]
[1643991528977,0.3411116,39832.0,39830.0,0.00094393]
[1643991529177,0.19508,39831.0,39830.0,0.00094393]
[1643991529375,0.38852,39831.0,39830.0,0.00094393]
[1643991529573,0.05,39831.0,39830.0,0.00094393]
[1643991529774,0.56782209,39831.0,39830.0,0.00094393]
[1643991529974,0.47527668,39831.0,39824.0,1.99136233]
[1643991530173,0.2738978,39831.0,39829.0,0.00094395]
[1643991530374,0.16822468,39831.0,39824.0,1.98230628]
[1643991530573,0.15651898,39831.0,39824.0,1.98230628]
[1643991530975,0.15109303,39831.0,39824.0,1.98230628]
[1643991531275,0.52482393,39831.0,39824.0,1.98230628]
[1643991531486,0.4225916,39831.0,39824.0,1.98230628]
[1643991532028,0.4225916,39831.0,39830.0,0.43687943]
[1643991532228,0.4225916,39831.0,39824.0,1.98230628]
[1643991532430,0.4225916,39831.0,39827.0,0.08029249]
[1643991532629,0.4225916,39831.0,39824.0,1.98230628]
[1643991533431,0.4225916,39831.0,39827.0,0.05]
[1643991533734,0.0025916,39831.0,39826.0,0.05]
[1643991533929,0.0025916,39831.0,39825.0,0.39565913]
[1643991534331,0.0993116,39831.0,39825.0,0.39565913]
[1643991534530,0.3411116,39831.0,39825.0,0.39565913]
[1643991535130,0.0025916,39831.0,39826.0,0.00094329]
[1643991535969,0.0025916,39831.0,39824.0,2.00112865]
[1643991536170,0.0025916,39831.0,39824.0,1.98230628]
[1643991536370,0.0025916,39831.0,39827.0,0.00094328]
[1643991537369,0.0025916,39831.0,39824.0,1.98230628]
[1643991537370,0.0025916,39831.0,39825.0,0.37146397]
[1643991537569,0.0025916,39831.0,39827.0,0.00094327]
[1643991537770,0.32226399,39831.0,39827.0,0.00094327]
[1643991537973,0.4340382,39830.0,39827.0,0.00094327]
[1643991538169,0.09914581,39828.0,39827.0,0.00094327]
[1643991538372,0.0525916,39828.0,39827.0,0.00094327]
[1643991538571,0.0525916,39828.0,39824.0,1.98230628]
[1643991538770,0.19429022,39827.0,39826.0,0.00090464]
[1643991538975,0.05,39827.0,39826.0,0.00090464]
[1643991539218,0.0525916,39827.0,39826.0,0.00090464]
[1643991539417,0.0025916,39827.0,39826.0,0.00090464]
[1643991539612,0.09887018,39827.0,39826.0,0.00090464]
[1643991539813,0.0525916,39827.0,39824.0,1.98230628]
[1643991540012,0.0525916,39827.0,39825.0,0.00084098]
[1643991540013,0.0025916,39827.0,39825.0,0.00084098]
[1643991540414,0.09551813,39827.0,39825.0,0.00084098]
[1643991540617,0.0025916,39827.0,39825.0,0.00084098]
[1643991540814,0.05,39826.0,39825.0,0.00084098]
[1643991541015,0.05,39826.0,39824.0,1.98230628]
[1643991541217,0.09902805,39827.0,39824.0,1.98314727]
[1643991541416,0.05,39826.0,39824.0,1.98314727]
[1643991541817,0.0025916,39827.0,39824.0,1.98314727]
[1643991542020,0.05,39826.0,39824.0,1.98314727]
[1643991542218,0.0025916,39827.0,39824.0,1.98230628]
[1643991542419,0.0025916,39827.0,39825.0,0.33970385]
[1643991542623,0.0025916,39827.0,39826.0,1.7]
[1643991542820,0.36234089,39841.0,39827.0,1.45]
[1643991542821,0.0025916,39838.0,39827.0,1.45]
[1643991543067,0.0025916,39838.0,39826.0,0.4947]
[1643991543465,0.0025916,39838.0,39826.0,0.89990045]
[1643991543663,0.40249848,39842.0,39826.0,0.89990045]
[1643991543865,0.44958452,39841.0,39827.0,0.05]
[1643991544066,0.10046575,39839.0,39827.0,0.1]
[1643991544366,0.30752766,39840.0,39831.0,0.05]
[1643991544567,0.43660191,39840.0,39831.0,0.05]
[1643991544764,0.4486995,39841.0,39831.0,0.05786232]
[1643991544963,0.0001918,39836.0,39831.0,0.05786232]
[1643991545166,0.0001918,39836.0,39835.0,0.05]
[1643991545369,0.0001918,39836.0,39835.0,1.80786232]
[1643991545968,0.0025916,39843.0,39837.0,0.05]
[1643991546167,0.0025916,39843.0,39842.0,0.42544683]
[1643991546367,0.0025916,39843.0,39842.0,0.47544683]
[1643991546817,0.0025916,39843.0,39842.0,0.42544683]
[1643991547224,0.0025916,39843.0,39842.0,0.47544683]
[1643991548018,0.0025916,39843.0,39842.0,0.42544683]
[1643991548217,0.0993116,39843.0,39842.0,0.42544683]
[1643991548418,0.0025916,39843.0,39842.0,0.47544683]
[1643991548923,0.00531237,39851.0,39843.0,1.65]
[1643991548924,0.10141952,39851.0,39843.0,1.65]
[1643991549117,0.10141952,39851.0,39846.0,0.1]
[1643991549319,0.10141952,39851.0,39844.0,0.37876196]
[1643991549320,0.0980158,39851.0,39844.0,0.37876196]
[1643991549518,0.0980158,39851.0,39850.0,1.7]
[1643991549721,0.0980158,39851.0,39850.0,0.05]
[1643991550118,0.0980158,39851.0,39849.0,0.45047487]
[1643991550573,0.33885173,39859.0,39849.0,0.45047487]
[1643991550774,0.00063621,39852.0,39849.0,0.40047487]
[1643991550972,0.00051621,39852.0,39849.0,0.40047487]
[1643991551172,0.00039621,39852.0,39849.0,0.40047487]
[1643991551371,0.00027621,39852.0,39849.0,0.40047487]
[1643991551574,0.00027621,39852.0,39850.0,0.05]
[1643991551575,0.00015621,39852.0,39850.0,0.05]
[1643991551772,0.33885173,39859.0,39845.0,0.05]
[1643991551972,0.33885173,39859.0,39844.0,0.08284412]
[1643991552173,0.38885173,39859.0,39844.0,0.062741]
[1643991552378,0.12573157,39857.0,39845.0,0.05]
[1643991552577,0.15728044,39851.0,39848.0,0.40050924]
[1643991552778,0.09966636,39857.0,39848.0,0.40050924]
[1643991552976,0.36904488,39853.0,39848.0,0.40050924]
[1643991553177,0.10239034,39851.0,39848.0,0.40050924]